[Event "GER-ch Youth-ODJM 2022"]
[Site "Willingen"]
[Date "2022.06.05"]
[Round "1.21"]
[White "Meiwes, Thore"]
[Black "Schulz, Jannis"]
[Result "0-1"]
[ECO "D02"]
[WhiteElo "2080"]
[BlackElo "1810"]
[Annotator "TA"]
[PlyCount "156"]
[EventDate "2022.06.05"]
[EventType "swiss"]
[EventRounds "9"]
[EventCountry "GER"]
[SourceTitle "playchess.com"]
[Source "ChessBase"]
[SourceQuality "1"]
[TimeControl "40/4500+30:900+30"]

{[%evp 9,156,0,9,-16,0,-70,-63,-60,-61,-64,-37,-54,-58,-73,-37,-46,-41,-41,-38,-61,-56,-55,-31,-25,-24,-44,-28,-26,-13,-64,-50,-91,-86,-79,-54,-121,-121,-126,-51,-42,-37,-62,-60,-75,-66,-81,-71,-162,-102,-109,-92,-88,-25,-45,0,0,0,0,0,0,0,-21,-29,-92,-81,-72,-75,-93,-64,-203,-205,-205,-236,-230,-231,-231,-211,-222,-230,-223,-197,-166,-135,-187,-187,-206,-187,-187,-187,-187,-187,-176,-160,-181,-175,-327,-327,-404,-403,-337,-202,-202,-202,-697,-765,-1121,-1012,-766,-116,-116,-116,-157,-116,-116,-116,-116,-116,-116,-116,-116,-116,-116,-116,-116,-116,-807,-800,-2002,-1960,-1677,-1681,-1458,-1107,-11908,-704,-29975,-29976,-29976,-29977,-29977,-29978,-29978,-29978,-29980,-29981,-29981,-29982,-29982,-29983]} 1. d4 {[%emt 0:00:00]} Nf6 {[%emt 0:00:00]} 2. Nf3 {[%emt 0:00:00]} d5 {[%emt 0:00:00]} 3. Bf4 {[%emt 0:00:00]} c5 {[%emt 0:00:00]} 4. e3 {[%emt 0:00:00]} Nc6 {[%emt 0:00:00]} 5. c3 {[%emt 0:00:00]} Qb6 {[%emt 0:00:00]} 6. Qc1 {[%emt 0:00:00] D02: 1 d4 d5 2 Nf3 sidelines, including 2...Nf6 3 g3 and 2...Nf6 3 Bf4.} Nh5 {[%emt 0:00:00]} 7. Bg5 {[%emt 0:00:00]} (7. dxc5 Qxc5 8. Bc7) (7. dxc5 $11 Qxc5 8. Bc7) 7... h6 {[%emt 0:00:00]} 8. Bh4 {[%emt 0:00:00] Black is slightly better.} g5 {[%emt 0:00:00]} 9. Bg3 {[%emt 0:00:00]} Nxg3 {[%emt 0:00:00]} 10. hxg3 {[%emt 0:00:00]} Bg7 {[%emt 0:00:00]} 11. Bd3 {[%emt 0:00:00]} Bd7 {[%emt 0:00:00]} 12. Nbd2 {[%emt 0:02:36]} Rc8 {[%emt 0:00:00][%cal Rc5d4]} 13. dxc5 {[%emt 0:08:05]} Qxc5 {[%emt 0:00:00]} 14. Nb3 {[%emt 0:00:23] [#]} Qb6 $146 {[%emt 0:00:00]} ({Predecessor:} 14... Qd6 15. Nfd4 Ne5 16. Qc2 e6 17. Be2 Nc4 18. Bxc4 Rxc4 19. Qd3 a6 20. O-O Rc7 {½-½ (73) Pejic,I (2008)-Loncar,R (2409) Rijeka 2012}) 15. Qd2 {[%emt 0:02:13]} e5 {[%emt 0:05:51] aiming for ...e4.} 16. e4 {[%emt 0:22:25]} d4 {[%emt 0:08:30]} (16... dxe4 {feels hotter.} 17. Bxe4 Ne7 18. O-O-O Be6) 17. cxd4 {[%emt 0:02:33]} exd4 {[%emt 0:04:48]} 18. O-O {[%emt 0:05:10]} Be6 {[%emt 0:01:20]} 19. Nc1 {[%emt 0:10:12]} (19. Rac1 $11) 19... O-O $15 {[%emt 0:00:23]} 20. Ne2 {[%emt 0:05:46]} Nb4 {[%emt 0:03:15]} 21. b3 {[%emt 0:01:32]} Rfd8 {[%emt 0:10:55]} 22. Rfc1 {[%emt 0:04:24] [#]} (22. Rac1 $15) 22... Rc3 $1 $17 {[%emt 0:04:47][%mdl 512]} 23. Ne1 {[%emt 0:02:02] [#]} (23. Nxc3 dxc3 24. Rxc3 Nxd3 25. Rxd3 Rxd3 26. Qxd3 Bxa1) (23. Nxc3 $2 dxc3 24. Rxc3 Nxd3 25. Rxd3 Rxd3 26. Qxd3 Bxa1 $19) 23... Nxd3 {[%emt 0:10:43]} (23... f5 24. e5 Rxc1 25. Rxc1 Bxe5) (23... f5 $1 $17 24. e5 Rxc1 25. Nxc1 Bxe5) 24. Nxd3 $15 {[%emt 0:01:05] [#]} Qb5 $1 {[%emt 0:02:45]} 25. Ne1 {[%emt 0:03:29]} (25. Nxc3 dxc3 26. Rxc3 Bxc3 27. Qxc3 Rxd3) (25. Rd1) (25. Nxc3 $2 {perishes.} dxc3 26. Rxc3 Bxc3 27. Qxc3 Rxd3 $19) (25. Rd1 Rcc8) 25... Rxc1 {[%emt 0:03:20] Black is much more active. The white rooks are badly placed.} 26. Rxc1 {[%emt 0:00:34]} f5 {[%emt 0:02:23]} 27. exf5 {[%emt 0:02:14]} Bxf5 {[%emt 0:00:52][%cal Be6f5,Bf5e4,Be4c6,Bc6d5][%mdl 32]} 28. Nf3 {[%emt 0:02:28]} (28. Rd1 $17) 28... d3 {[%emt 0:02:36]} (28... Qd7 $19 {...d3 is the strong threat.} 29. Rd1 d3) 29. Nc3 $17 {[%emt 0:01:09][%cal Be2c3,Bc3d1,Bd1e3][%mdl 32]} Qd7 {[%emt 0:02:58]} 30. Nd1 {[%emt 0:00:51]} Rc8 {[%emt 0:05:38]} ({Better is} 30... g4 $17 31. Nh4 Bh7) 31. Ne3 {[%emt 0:00:39]} Be4 {[%emt 0:01:29] This bishop pair is nice.} 32. Rxc8+ {[%emt 0:03:28]} Qxc8 {[%emt 0:00:03]} 33. Qb4 {[%emt 0:01:36] Inhibits Qc5.} Qe6 {[%emt 0:09:41]} 34. Nd2 {[%emt 0:01:49]} Bc6 {[%emt 0:01:59]} 35. Qc5 {[%emt 0:00:25]} b6 {[%emt 0:01:09]} 36. Qf5 {[%emt 0:01:19]} (36. Qb4 $11) 36... Qxf5 {[%emt 0:03:07]} 37. Nxf5 {[%emt 0:00:07][%mdl 4096] Endgame KBB-KNN} Bf8 {[%emt 0:00:06] Against Ne7+} 38. Nd4 {[%emt 0:02:07]} Bd5 {[%emt 0:00:42]} 39. Nf5 {[%emt 0:02:21]} ({White must play} 39. Kf1 $15) 39... Bb4 $19 {[%emt 0:01:07]} 40. Nf1 {[%emt 0:01:57]} Be4 {[%emt 0:04:03]} 41. N5e3 {[%emt 0:00:00]} d2 {[%emt 0:00:00]} 42. a3 {[%emt 0:00:00]} d1=Q {[%emt 0:00:00]} ({Stronger than} 42... Bxa3 43. Nxd2 Bd3 44. Nf3 $17) 43. Nxd1 {[%emt 0:00:00]} Bxa3 {[%emt 0:00:00]} 44. Nd2 {[%emt 0:00:00]} Bd5 {[%emt 0:00:00]} 45. Nc3 {[%emt 0:00:00]} Be6 {[%emt 0:00:00] And now ...Bb4 would win.} 46. Kf1 {[%emt 0:00:00]} (46. Nb5 $17 Bb4 47. Ne4) 46... Bb4 {[%emt 0:00:00]} 47. Nce4 {[%emt 0:00:00]} Kf7 {[%emt 0:00:00]} 48. Ke2 {[%emt 0:00:00]} Bd5 {[%emt 0:00:00]} 49. f3 {[%emt 0:01:41]} Ke6 {[%emt 0:00:00]} 50. Ke3 {[%emt 0:01:23]} a5 {[%emt 0:01:35]} 51. Kd4 {[%emt 0:03:30] [#]} b5 $1 {[%emt 0:03:24]} 52. Nc3 {[%emt 0:06:18] Inhibits a4.} (52. Nc5+ Kd6 53. Nde4+ Kc6 54. Nd3 Bxb3 55. Nxb4+ axb4 56. Nf2) 52... Bxc3+ {[%emt 0:00:46]} 53. Kxc3 {[%emt 0:00:04] KB-KN} Ke5 {[%emt 0:00:14]} 54. Kd3 {[%emt 0:00:43]} (54. b4 a4 55. Nf1) 54... Be6 {[%emt 0:00:50]} (54... Bf7 $142 55. Kc3 Be6) 55. Ke3 {[%emt 0:01:32]} Bf5 {[%emt 0:00:27]} 56. g4 $2 {[%emt 0:00:22]} (56. f4+ Kd5 57. Nf3) (56. f4+ Kd5 57. Nf3) 56... Bg6 {[%emt 0:00:23]} 57. g3 {[%emt 0:00:56]} Kd5 {[%emt 0:01:23]} 58. f4 {[%emt 0:01:14]} Kc5 $2 {[%emt 0:02:32]} (58... Bc2 $19 {has better winning chances.} 59. f5 Bd1) 59. f5 {[%emt 0:00:20]} Bf7 {[%emt 0:00:20] Threatens to win with ...a4.} 60. Kd3 {[%emt 0:00:36]} Kb4 {[%emt 0:01:06]} 61. Kc2 {[%emt 0:00:41]} Bg8 {[%emt 0:01:28]} 62. Kb2 {[%emt 0:01:00]} Bd5 {[%emt 0:00:11] Prevents Ne4.} 63. Kc2 {[%emt 0:02:59]} a4 {[%emt 0:02:13]} 64. bxa4 {[%emt 0:00:04]} bxa4 {[%emt 0:00:02] Strongly threatening ...a3.} 65. Nb1 {[%emt 0:01:53]} Bb3+ {[%emt 0:04:01]} 66. Kd3 {[%emt 0:01:06]} Kc5 {[%emt 0:00:27] White must now prevent ...Bd1.} 67. Na3 $2 {[%emt 0:00:55][%mdl 8192] [#]} (67. Nd2 Bg8 68. Kc3) (67. Nd2 $17 Bf7 68. Ne4+ Kc6 69. Kd4) 67... Bd1 $1 {[%emt 0:01:09]} 68. f6 {[%emt 0:00:47]} Kd6 {[%emt 0:00:35]} (68... Bb3 69. Ke4) ({Not} 68... Bb3 69. Ke4 $15) 69. Nc4+ {[%emt 0:00:09]} Ke6 {[%emt 0:00:19]} 70. Ne3 {[%emt 0:00:10]} Bf3 {[%emt 0:01:03]} 71. Nf5 {[%emt 0:01:06]} Kxf6 {[%emt 0:00:47]} (71... a3 $142 72. Kc3 Kxf6) 72. Nxh6 {[%emt 0:00:02]} a3 {[%emt 0:01:36] Black mates.} 73. Kc3 {[%emt 0:00:13]} Be4 {[%emt 0:01:31]} 74. Ng8+ {[%emt 0:01:01]} Kf7 {[%emt 0:00:24]} 75. Nh6+ {[%emt 0:00:04]} Kg7 {[%emt 0:00:21]} 76. Nf5+ {[%emt 0:00:08]} Bxf5 {[%emt 0:00:13]} 77. gxf5 {[%emt 0:00:07]} g4 {[%emt 0:00:05]} (77... Kf6 78. g4 Ke7 79. Kb3 Kf7 80. Kxa3 Kf8 81. Kb4 Kg7 82. Kc4) 78. Kb3 {[%emt 0:00:02]} Kf6 {[%emt 0:00:07] Weighted Error Value: White=0.39/Black=0.28 (precise)} 0-1

[Event "GER-ch Youth-ODJM 2022"]
[Site "Willingen"]
[Date "2022.06.05"]
[Round "1.22"]
[White "Matthes, Benjamin"]
[Black "Brunner, Tobias"]
[Result "0-1"]
[ECO "B23"]
[WhiteElo "1851"]
[BlackElo "2007"]
[Annotator "TA"]
[PlyCount "75"]
[EventDate "2022.06.05"]
[EventType "swiss"]
[EventRounds "9"]
[EventCountry "GER"]
[SourceTitle "playchess.com"]
[Source "ChessBase"]
[SourceQuality "1"]
[TimeControl "40/4500+30:900+30"]

{[%evp 9,75,-17,0,-11,0,0,0,0,1,0,24,21,24,17,35,27,18,29,17,4,0,6,29,20,21,-30,-27,-55,0,0,66,44,60,27,73,37,38,0,79,85,76,79,134,127,131,121,444,456,476,454,426,0,499,472,29992,806,1114,1108,1202,1171,1257,571,723,645,633,557,1553,1581]} 1. e4 {[%emt 0:00:00]} c5 {[%emt 0:00:00]} 2. Nc3 {[%emt 0:00:00]} Nc6 {[%emt 0:00:00]} 3. f4 {[%emt 0:00:00]} e6 {[%emt 0:00:00]} 4. Nf3 {[%emt 0:00:00]} d5 {[%emt 0:00:00]} 5. d3 {[%emt 0:00:00]} Be7 {[%emt 0:07:27]} 6. g3 {[%emt 0:00:00] B23: Closed Sicilian: Lines without g3.} dxe4 {[%emt 0:24:35]} 7. dxe4 {[%emt 0:00:00]} Qxd1+ {[%emt 0:03:11]} 8. Nxd1 {[%emt 0:01:14] The position is equal.} Nf6 {[%emt 0:07:20] [#]} 9. Nf2 $146 {[%emt 0:06:38]} ({Predecessor:} 9. e5 Nd5 10. c3 b6 11. Ne3 Bb7 12. Bg2 O-O-O 13. O-O Na5 14. Nxd5 Bxd5 15. b3 {0-1 (42) Primbetov,K (2275)-Quparadze,G (2499) Batumi 2019}) 9... Nb4 {[%emt 0:06:08]} 10. Kd1 {[%emt 0:01:10]} O-O {[%emt 0:06:01]} 11. c3 {[%emt 0:03:41]} Rd8+ {[%emt 0:07:27]} 12. Bd2 {[%emt 0:02:09]} Nc6 {[%emt 0:00:01]} 13. Kc2 {[%emt 0:00:40]} a6 {[%emt 0:01:04]} 14. g4 {[%emt 0:04:01][%cal Bg3g4,Bg4g5][%mdl 32]} b5 {[%emt 0:03:28]} 15. g5 {[%emt 0:04:54]} Ne8 {[%emt 0:01:20]} 16. h4 {[%emt 0:05:43]} Bb7 {[%emt 0:03:04]} 17. Bh3 {[%emt 0:02:44]} (17. h5 $142) 17... Nd6 {[%emt 0:00:59][%cal Od6e4] Strongly threatening ...Nxe4!} 18. Rae1 {[%emt 0:02:14]} a5 {[%emt 0:06:33]} (18... b4) (18... Nc4 19. Bc1 $11) (18... b4 $1 $15) 19. h5 $11 {[%emt 0:02:01][%cal Og5g6]} g6 {[%emt 0:02:39]} ({Black should try} 19... a4 $11) 20. Bg4 {[%emt 0:02:45]} b4 {[%emt 0:02:33]} 21. Rh3 {[%emt 0:01:19] hxg6 is the strong threat.} (21. hxg6 hxg6 22. Nd3) 21... Bf8 {[%emt 0:00:01]} (21... Nc4 $2 22. hxg6 h5 23. gxf7+ Kg7 24. Bxe6 Nxd2 25. Nxd2 $18) (21... gxh5 $11 {should be considered.} 22. Rxh5 Bf8) 22. hxg6 $16 {[%emt 0:04:03]} hxg6 {[%emt 0:00:02]} 23. e5 {[%emt 0:01:01]} (23. Nd3 $5 {[%cal Rd3c5]}) 23... Nc4 {[%emt 0:01:50]} (23... bxc3 $1 $11 {keeps the balance.} 24. bxc3 Nc4) 24. Ne4 {[%emt 0:01:51] Nf6+ would kill now.} Bg7 {[%emt 0:00:02]} 25. Nxc5 {[%emt 0:03:20]} (25. Bc1 $5 {[%cal Re4c5]}) 25... Bc8 {[%emt 0:00:54]} (25... N6xe5 $142 26. Nxb7 Nxf3 27. Nxd8 Nxe1+ 28. Bxe1 Rxd8) 26. Bc1 {[%emt 0:05:06]} bxc3 {[%emt 0:01:19]} 27. bxc3 {[%emt 0:00:16] Black must now prevent Nh2.} Nb6 $2 {[%emt 0:00:17][%mdl 8192] [#]} (27... Rb8) (27... Rb8 $16) 28. Nd2 $1 $18 {[%emt 0:01:31]} Nd5 {[%emt 0:00:12]} 29. Nde4 {[%emt 0:01:00]} Rb8 {[%emt 0:01:01][%cal Oc6b4]} 30. Nf6+ $2 {[%emt 0:03:51]} (30. Reh1 $18) 30... Kf8 $2 {[%emt 0:00:25][%mdl 8192]} (30... Bxf6 $11 {and Black stays safe.} 31. exf6 (31. gxf6 Ndb4+ 32. cxb4 Nxb4+ 33. Kc3 Nxa2+ 34. Kc2 Nb4+ 35. Kc3 Na2+ 36. Kc2 Nb4+ 37. Kc3 Na2+ $11) 31... Ndb4+ 32. cxb4 Nxb4+ 33. Kc3 Nxa2+ 34. Kc2 Nb4+ 35. Kc3 Na2+ 36. Kc2 Nb4+ 37. Kc3 Na2+) 31. Ba3 {[%emt 0:00:58][%csl Gf6][%cal Rc5d7]} ({Not} 31. Rh7 Ndb4+ 32. cxb4 Nxb4+ 33. Kb3 (33. Kc3 Nxa2+ 34. Kc2 Nb4+ 35. Kc3 Na2+ 36. Kc2 Nb4+ 37. Kc3 Na2+ $11) 33... Nd3+ 34. Kc3 (34. Ka3 $2 Nxe1 35. Rh2 Bxf6 $19) 34... Nxc5 $18) 31... Bxf6 {[%emt 0:00:33]} (31... Ncb4+ $18 32. cxb4 axb4) 32. Nd7+ {[%emt 0:00:45]} (32. exf6 $142 Ncb4+ 33. Bxb4 Nxb4+ 34. cxb4 Rd2+ 35. Kxd2 Kg8 36. Reh1 axb4 37. Rh8#) 32... Ke8 {[%emt 0:00:26] White is clearly winning.} 33. Nxb8 {[%emt 0:01:11]} Nxb8 {[%emt 0:00:01]} 34. gxf6 {[%emt 0:00:17]} Ba6 {[%emt 0:01:04]} 35. Rh8+ {[%emt 0:01:06]} Kd7 {[%emt 0:00:01]} 36. Rxd8+ {[%emt 0:00:11]} Kxd8 {[%emt 0:00:02]} 37. Re4 {[%emt 0:01:09][%cal Og4e6] Threatens to win with Bxe6!} Nc6 {[%emt 0:00:40] [#]} 38. Bxe6 $1 {[%emt 0:00:44][%mdl 32768] Weighted Error Value: White=0.44/Black=0.81. Loss on time!?} 0-1

[Event "GER-ch Youth-ODJM 2022"]
[Site "Willingen"]
[Date "2022.06.05"]
[Round "2.1"]
[White "Kieselbach, Marvin"]
[Black "John, Niklas"]
[Result "1/2-1/2"]
[ECO "A48"]
[WhiteElo "1662"]
[BlackElo "1563"]
[Annotator "NA RC COMBH"]
[PlyCount "77"]
[EventDate "2022.06.05"]
[EventType "swiss"]
[EventRounds "9"]
[EventCountry "GER"]
[SourceTitle "playchess.com"]
[Source "ChessBase"]
[SourceQuality "1"]
[TimeControl "40/4500+30:900+30"]

1. d4 {[%emt 0:00:00]} Nf6 {[%emt 0:00:00]} 2. Nf3 {[%emt 0:00:00]} g6 {[%emt 0:00:00]} 3. Nc3 {[%emt 0:00:00]} d5 {[%emt 0:00:00]} 4. Bf4 {[%emt 0:00:00]} Bg7 {[%emt 0:00:00]} 5. e3 {[%emt 0:00:00]} c6 {[%emt 0:00:00]} 6. Be2 {[%emt 0:00:00]} O-O {[%emt 0:00:00]} 7. Ne5 {[%emt 0:00:00]} Nbd7 {[%emt 0:00:10]} 8. g4 {[%emt 0:00:00]} Nxe5 {[%emt 0:06:07]} 9. Bxe5 {[%emt 0:00:00]} Re8 {[%emt 0:03:32]} 10. h4 {[%emt 0:00:00]} b5 {[%emt 0:07:55]} 11. h5 {[%emt 0:09:28]} Qa5 {[%emt 0:04:58]} 12. hxg6 {[%emt 0:02:07]} fxg6 {[%emt 0:01:06]} 13. Kf1 {[%emt 0:14:25]} b4 {[%emt 0:04:54]} 14. Nb1 {[%emt 0:00:22]} Ba6 {[%emt 0:10:18]} 15. Nd2 {[%emt 0:05:15]} Nxg4 {[%emt 0:03:33]} 16. Bxg7 {[%emt 0:03:38]} Kxg7 {[%emt 0:01:21]} 17. Nb3 {[%emt 0:07:43]} Bxe2+ {[%emt 0:11:30]} 18. Qxe2 {[%emt 0:00:22]} Qb5 {[%emt 0:00:41]} 19. Nc5 {[%emt 0:02:58]} Qxe2+ {[%emt 0:02:34]} 20. Kxe2 {[%emt 0:00:10]} e5 {[%emt 0:02:22]} 21. f3 {[%emt 0:00:17]} Nh6 {[%emt 0:01:41]} 22. dxe5 {[%emt 0:02:24]} Rxe5 {[%emt 0:01:12]} 23. f4 {[%emt 0:03:20]} Re7 {[%emt 0:03:00]} 24. Rh3 {[%emt 0:04:24]} Rae8 {[%emt 0:03:35]} 25. Rah1 {[%emt 0:01:10]} Nf5 {[%emt 0:07:10]} 26. Rxh7+ {[%emt 0:00:14]} Kf6 {[%emt 0:00:41]} 27. Nd7+ {[%emt 0:02:36]} Rxd7 {[%emt 0:01:04]} 28. Rxd7 {[%emt 0:00:22]} Ng3+ {[%emt 0:00:25]} 29. Kf3 {[%emt 0:00:09]} Nxh1 {[%emt 0:00:34]} 30. Rh7 {[%emt 0:03:23]} Ng3 {[%emt 0:01:30]} 31. Kxg3 {[%emt 0:00:07]} Rxe3+ {[%emt 0:00:17]} 32. Kf2 {[%emt 0:02:10]} Re7 {[%emt 0:00:41]} 33. Rh8 {[%emt 0:01:20]} c5 {[%emt 0:04:12]} 34. Rd8 {[%emt 0:03:55]} Ke6 {[%emt 0:01:12]} 35. Rg8 {[%emt 0:00:20]} Kf5 {[%emt 0:00:51]} 36. Kf3 {[%emt 0:01:38]} Kf6 {[%emt 0:03:43]} 37. Rd8 {[%emt 0:00:19]} Ke6 {[%emt 0:00:12]} 38. Rg8 {[%emt 0:00:16]} Kf6 {[%emt 0:00:53]} 39. Rd8 {[%emt 0:00:14]} 1/2-1/2

[Event "GER-ch Youth-ODJM 2022"]
[Site "Willingen"]
[Date "2022.06.05"]
[Round "2.2"]
[White "Zinnikus, Elias"]
[Black "Fahlbusch, Niclas"]
[Result "0-1"]
[ECO "A06"]
[WhiteElo "1282"]
[BlackElo "1280"]
[Annotator "NA RC COMBH"]
[PlyCount "92"]
[EventDate "2022.06.05"]
[EventType "swiss"]
[EventRounds "9"]
[EventCountry "GER"]
[SourceTitle "playchess.com"]
[Source "ChessBase"]
[SourceQuality "1"]
[TimeControl "40/4500+30:900+30"]

1. Nf3 {[%emt 0:00:00]} d5 {[%emt 0:00:00]} 2. d4 {[%emt 0:00:00]} Bf5 {[%emt 0:00:00]} 3. c4 {[%emt 0:00:00]} e6 {[%emt 0:00:00]} 4. Nc3 {[%emt 0:00:00]} c6 {[%emt 0:00:00]} 5. e3 {[%emt 0:00:00]} Nf6 {[%emt 0:00:00]} 6. Be2 {[%emt 0:00:00]} Bd6 {[%emt 0:00:00]} 7. O-O {[%emt 0:00:00]} Nbd7 {[%emt 0:00:00]} 8. Re1 {[%emt 0:00:00]} O-O {[%emt 0:00:00]} 9. Qb3 {[%emt 0:00:00]} b6 {[%emt 0:01:33]} 10. Bd2 {[%emt 0:00:00]} c5 {[%emt 0:06:48]} 11. cxd5 {[%emt 0:00:00]} cxd4 {[%emt 0:00:10]} 12. Nxd4 {[%emt 0:00:00]} Nc5 {[%emt 0:00:54]} 13. Qc4 {[%emt 0:00:00]} exd5 {[%emt 0:00:39]} 14. Nxd5 {[%emt 0:00:00]} Nxd5 {[%emt 0:00:06]} 15. Nxf5 {[%emt 0:00:00]} Be5 {[%emt 0:03:51]} 16. Qxd5 {[%emt 0:00:00]} Qxd5 {[%emt 0:01:11]} 17. Ne7+ {[%emt 0:00:00]} Kh8 {[%emt 0:00:03]} 18. Nxd5 {[%emt 0:00:00]} Rad8 {[%emt 0:00:07]} 19. Bf3 {[%emt 0:00:00]} Nd3 {[%emt 0:01:05]} 20. Re2 {[%emt 0:00:00]} Nxb2 {[%emt 0:00:27]} 21. Bb4 {[%emt 0:00:00]} Nc4 {[%emt 0:00:59]} 22. Bxf8 {[%emt 0:01:05]} Bxa1 {[%emt 0:00:06]} 23. Re1 {[%emt 0:01:28]} Nd2 {[%emt 0:02:26]} 24. Rxa1 {[%emt 0:01:09]} Nxf3+ {[%emt 0:00:11]} 25. gxf3 {[%emt 0:00:19]} Rxf8 {[%emt 0:00:08]} 26. Rc1 {[%emt 0:00:22]} Ra8 {[%emt 0:01:12]} 27. Rc7 {[%emt 0:00:20]} Kg8 {[%emt 0:00:09]} 28. Kg2 {[%emt 0:00:29]} b5 {[%emt 0:00:48]} 29. Ne7+ {[%emt 0:00:28]} Kf8 {[%emt 0:00:33]} 30. Rc8+ {[%emt 0:00:07]} Rxc8 {[%emt 0:00:08]} 31. Nxc8 {[%emt 0:00:04]} a5 {[%emt 0:00:05]} 32. Nb6 {[%emt 0:00:13]} Ke7 {[%emt 0:00:11]} 33. Kg3 {[%emt 0:00:01]} Kd6 {[%emt 0:00:19]} 34. Kf4 {[%emt 0:01:27]} Kc5 {[%emt 0:00:40]} 35. Nd7+ {[%emt 0:00:31]} Kb4 {[%emt 0:00:10]} 36. Ke4 {[%emt 0:00:10]} Ka3 {[%emt 0:00:10]} 37. Kd3 {[%emt 0:00:49]} Kxa2 {[%emt 0:00:11]} 38. Nc5 {[%emt 0:00:13]} Kb2 {[%emt 0:00:31]} 39. e4 {[%emt 0:00:31]} a4 {[%emt 0:00:06]} 40. Kd2 {[%emt 0:00:30]} a3 {[%emt 0:00:13]} 41. Nd3+ {[%emt 0:15:11]} Kb1 {[%emt 0:15:52]} 42. Nb4 {[%emt 0:02:55]} a2 {[%emt 0:01:24]} 43. Nc2 {[%emt 0:00:09]} b4 {[%emt 0:00:13]} 44. Kd3 {[%emt 0:02:29]} b3 {[%emt 0:00:50]} 45. Na3+ {[%emt 0:00:27]} Kc1 {[%emt 0:00:37]} 46. e5 {[%emt 0:02:07]} a1=Q {[%emt 0:00:11]} 0-1

[Event "GER-ch Youth-ODJM 2022"]
[Site "Willingen"]
[Date "2022.06.05"]
[Round "2.3"]
[White "Lerner, David B"]
[Black "Roth, Jonas"]
[Result "0-1"]
[ECO "C15"]
[WhiteElo "2125"]
[BlackElo "1239"]
[Annotator "TA"]
[PlyCount "73"]
[EventDate "2022.06.05"]
[EventType "swiss"]
[EventRounds "9"]
[EventCountry "GER"]
[SourceTitle "playchess.com"]
[Source "ChessBase"]
[SourceQuality "1"]
[TimeControl "40/4500+30:900+30"]

{[%evp 11,73,35,101,100,447,93,264,92,132,137,134,43,101,41,40,-77,50,-41,40,-76,0,-95,0,0,0,-102,-100,-140,-75,-150,-111,-212,-132,-153,-139,-200,-218,-223,-112,-186,-105,-189,-82,-101,-107,-202,-139,-153,-88,-88,-70,-122,-94,-91,-16,-31,-26,-208,-153,-401,-391,-432,-261,-513]} 1. e4 {[%emt 0:00:00]} e6 {[%emt 0:00:00]} 2. d4 {[%emt 0:00:00]} d5 {[%emt 0:00:00]} 3. Nc3 {[%emt 0:00:00]} Bb4 {[%emt 0:00:00]} 4. Bd3 {[%emt 0:00:00]} Ne7 {[%emt 0:00:00]} 5. Nf3 {[%emt 0:00:00]} O-O {[%emt 0:00:00]} 6. O-O {[%emt 0:00:00]} c6 {[%emt 0:00:00]} (6... h6 $14) 7. e5 $16 {[%emt 0:00:00][%cal Od3h7] B15: Caro-Kann: 3 Nc3: 3...g6 and 3...dxe4 4 Nxe4 Nf6 5 Nxf6+ exf6.} Nd7 $2 {[%emt 0:00:00][%mdl 8192] [#]} (7... f5 $16 {is more resistant.}) 8. Ne2 $2 {[%emt 0:00:00] [#]} (8. Bxh7+ $1 $18 {[%mdl 512] and the rest is easy.} Kh8 9. Ng5) 8... f6 $146 {[%emt 0:00:00]} (8... Nf5 $16) ({Predecessor:} 8... c5 9. c3 Ba5 10. Be3 c4 11. Bc2 b5 12. Nf4 Ba6 13. a3 Qb6 14. Ng5 g6 15. Qg4 h5 16. Qh3 Kg7 17. Nxh5+ gxh5 18. Qxh5 Rh8 19. Qxf7+ Kh6 20. Nf3# {1-0 (20) Strouhalova,L (1398)-Zpevakova,K (1100) Sec u Chrudimi 2008}) 9. Ng3 $2 {[%emt 0:00:00]} (9. Nf4 $18 {is more deadly.} Qe8 10. Nxe6 Nxe5 11. Bxh7+ (11. Nxf8 Nxd3 12. Qxd3 Qxf8 $16) 11... Kxh7 12. Nxf8+ Qxf8 13. dxe5) 9... Qe8 {[%emt 0:00:00]} (9... fxe5 $2 10. Ng5 e4 11. Nxe6 $18) 10. c3 {[%emt 0:00:00]} Ba5 {[%emt 0:00:00]} 11. Qc2 {[%emt 0:00:00]} ({White should try} 11. exf6 $16 Nxf6 12. Bf4) 11... h6 {[%emt 0:00:00]} (11... fxe5 $1 $14 12. Bxh7+ (12. Nxe5 Nxe5 13. dxe5 Ng6 $14) 12... Kh8) 12. h3 {[%emt 0:00:47]} (12. exf6 $16 Rxf6 13. Bd2) 12... fxe5 {[%emt 0:00:00]} 13. dxe5 {[%emt 0:01:10] [#]} (13. Nxe5 $14 {was the only good move.} Nxe5 14. dxe5) 13... a6 {[%emt 0:00:00]} (13... Rxf3 $1 $17 14. gxf3 Nxe5) 14. Be3 {[%emt 0:01:26] [#]} (14. Qe2 $1 $14) 14... b5 {[%emt 0:00:00]} (14... Rxf3 $1 $15 15. gxf3 Nxe5) 15. a3 {[%emt 0:04:08] [#]} (15. Nh4 $14 {keeps the upper hand.}) 15... Bc7 {[%emt 0:00:00]} (15... Rxf3 $1 $17 16. gxf3 Nxe5) 16. Rfe1 {[%emt 0:02:06] [#]} (16. Qe2 $11) 16... Nxe5 {[%emt 0:00:00]} (16... Rxf3 $1 $17 17. gxf3 Nxe5) 17. Nxe5 $11 {[%emt 0:07:18]} Bxe5 {[%emt 0:00:00]} 18. Rf1 {[%emt 0:00:34]} (18. Bc5 $11 {keeps the balance.} Bb8 19. Nf5 $1 Nxf5 20. Bxf5) 18... Bd6 $1 $17 {[%emt 0:00:07]} 19. b4 {[%emt 0:00:21]} Bd7 {[%emt 0:01:48]} (19... e5 $142 {Strongly threatening ...e4.} 20. Rfd1 Kh8) 20. Rae1 {[%emt 0:01:22]} ({Better is} 20. f4) 20... Qb8 {[%emt 0:06:40]} 21. Bd2 {[%emt 0:03:16]} (21. Qc1 $17) 21... Bxg3 {[%emt 0:04:28]} 22. fxg3 {[%emt 0:02:59]} Qxg3 {[%emt 0:01:06]} 23. Re3 {[%emt 0:02:26]} (23. Qb1 $17) 23... Rxf1+ $19 {[%emt 0:01:01]} 24. Bxf1 {[%emt 0:00:32]} Qh4 {[%emt 0:04:17]} (24... Qc7 $19 25. Qc1 Qb6) 25. Be1 {[%emt 0:03:33] [#]} (25. Bd3 $17 {was called for.}) 25... Qf4 {[%emt 0:02:25]} (25... Qg5 $1 $19 {[%cal Rg5e3]} 26. Rg3 Qe5) 26. Rf3 {[%emt 0:01:07] [#]} (26. Qe2 $17) 26... Qe5 {[%emt 0:01:33]} (26... Qd6 $1 $19 {has better winning chances.} 27. Bg3 e5) 27. Bf2 {[%emt 0:01:42]} Rf8 {[%emt 0:01:15][%cal Ba8f8,Bf8f7,Bf7f6,Bf6g6][%mdl 32]} 28. Rg3 {[%emt 0:03:18]} (28. Bg3 $17 Qg5 29. Rxf8+ Kxf8 30. Qf2+ Nf5 31. Be5) 28... Nf5 {[%emt 0:02:12]} 29. Rf3 {[%emt 0:01:21]} Be8 {[%emt 0:05:17]} (29... Qf6 $142 30. Bc5 Rf7) 30. Bd3 $17 {[%emt 0:04:01]} Rf7 {[%emt 0:02:52]} 31. g4 {[%emt 0:06:28]} (31. Qd1 $15) 31... Ne7 {[%emt 0:03:01]} 32. Re3 {[%emt 0:06:27]} Qd6 (32... Qg5 $17 {White must now prevent ...e5.} 33. Rxe6 (33. Bh7+ $2 Kh8 $19) 33... Bd7) 33. Bg3 {[%emt 0:02:12] Inhibits e5.} Qd7 {[%emt 0:03:38]} 34. Re5 $2 {[%emt 0:02:43]} (34. Be5 $11 {and White stays safe.}) 34... Rf6 {[%emt 0:03:31]} 35. h4 $2 {[%emt 0:00:59]} (35. Re3 $17) 35... Bg6 $19 {[%emt 0:02:36]} 36. Bxg6 {[%emt 0:00:46]} Rxg6 {[%emt 0:00:20]} 37. g5 $2 {Weighted Error Value: White=0.95/Black=0.78} (37. Qd1 {is a better defense.}) 0-1